[Event "NED-ch U14 Youth 2019"]
[Site "Assen"]
[Date "2019.04.28"]
[Round "1.1"]
[White "Pham, Khoi"]
[Black "Slagboom, Leandro"]
[Result "1/2-1/2"]
[ECO "E04"]
[WhiteElo "2140"]
[BlackElo "1738"]
[Annotator "NA"]
[PlyCount "38"]
[EventDate "2019.04.27"]
[EventType "swiss"]
[EventCountry "NED"]
[SourceTitle "playchess.com"]
[Source "ChessBase"]
[SourceQuality "1"]
[TimeControl "5400+30"]

1. d4 {[%emt 0:00:00]} d5 {[%emt 0:00:00]} 2. c4 {[%emt 0:00:00]} c6 {[%emt 0:00:00]} 3. Nc3 {[%emt 0:00:00]} Nf6 {[%emt 0:00:00]} 4. Nf3 {[%emt 0:00:00]} e6 {[%emt 0:00:00]} 5. g3 {[%emt 0:00:00]} dxc4 {[%emt 0:00:00]} 6. Bg2 {[%emt 0:00:04]} b5 {[%emt 0:00:08]} 7. Ne5 {[%emt 0:00:13]} Qb6 {[%emt 0:00:15]} 8. O-O {[%emt 0:02:07]} Bb7 {[%emt 0:00:12]} 9. e4 {[%emt 0:01:01]} Nbd7 {[%emt 0:03:02]} 10. Bf4 {[%emt 0:09:21]} Be7 {[%emt 0:02:11]} 11. d5 {[%emt 0:04:37]} Nxe5 {[%emt 0:05:46]} 12. Bxe5 {[%emt 0:01:20]} cxd5 {[%emt 0:01:14]} 13. exd5 {[%emt 0:02:21]} O-O {[%emt 0:05:41]} 14. Bd4 {[%emt 0:04:34]} Qa6 {[%emt 0:07:18]} 15. dxe6 {[%emt 0:09:58]} Bxg2 {[%emt 0:03:39]} 16. Bxf6 {[%emt 0:14:25]} Bxf1 {[%emt 0:07:36]} 17. Bxe7 {[%emt 0:00:26]} Qb7 {[%emt 0:04:45]} 18. Nd5 {[%emt 0:14:43]} fxe6 {[%emt 0:01:51]} 19. Bxf8 {[%emt 0:01:35]} Rxf8 {[%emt 0:04:51]} 1/2-1/2

[Event "NED-ch U14 Youth 2019"]
[Site "Assen"]
[Date "2019.04.28"]
[Round "1.2"]
[White "Shadrin, Mitia"]
[Black "Roebers, Eline"]
[Result "1-0"]
[ECO "C00"]
[WhiteElo "1692"]
[BlackElo "2077"]
[Annotator "NA"]
[PlyCount "87"]
[EventDate "2019.04.27"]
[EventType "swiss"]
[EventCountry "NED"]
[SourceTitle "playchess.com"]
[Source "ChessBase"]
[SourceQuality "1"]
[TimeControl "5400+30"]

1. e4 {[%emt 0:00:00]} c5 {[%emt 0:00:00]} 2. Nf3 {[%emt 0:00:00]} e6 {[%emt 0:00:00]} 3. d3 {[%emt 0:00:00]} Nc6 {[%emt 0:00:15]} 4. g3 {[%emt 0:00:15]} Nf6 {[%emt 0:02:12]} 5. Bg2 {[%emt 0:00:38]} d5 {[%emt 0:01:37]} 6. Nbd2 {[%emt 0:00:11]} Be7 {[%emt 0:01:15]} 7. O-O {[%emt 0:00:29]} O-O {[%emt 0:00:41]} 8. Re1 {[%emt 0:01:45]} b5 {[%emt 0:09:27]} 9. e5 {[%emt 0:02:09]} Nd7 {[%emt 0:02:41]} 10. Nf1 {[%emt 0:00:08]} f6 {[%emt 0:06:15]} 11. exf6 {[%emt 0:03:08]} Bxf6 {[%emt 0:02:24]} 12. Ne3 {[%emt 0:02:33]} Nb6 {[%emt 0:10:33]} 13. Ng4 {[%emt 0:00:24]} Bd7 {[%emt 0:08:42]} 14. h4 {[%emt 0:01:10]} Nd4 {[%emt 0:06:29]} 15. Nfe5 {[%emt 0:24:39]} Be8 {[%emt 0:07:06]} 16. c3 {[%emt 0:03:06]} Nf5 {[%emt 0:01:08]} 17. Nxf6+ {[%emt 0:00:16]} gxf6 {[%emt 0:01:41]} 18. Nf3 {[%emt 0:11:17]} Bf7 {[%emt 0:07:12]} 19. g4 {[%emt 0:01:25]} Nd6 {[%emt 0:02:07]} 20. Nh2 {[%emt 0:03:09]} Nd7 {[%emt 0:06:44]} 21. g5 {[%emt 0:00:44]} Nf5 {[%emt 0:01:16]} 22. Ng4 {[%emt 0:09:20]} Nxh4 {[%emt 0:06:14]} 23. gxf6 {[%emt 0:00:35]} Nf5 {[%emt 0:02:26]} 24. Bg5 {[%emt 0:03:51]} Kh8 {[%emt 0:01:44]} 25. f4 {[%emt 0:02:30]} Rg8 {[%emt 0:01:16]} 26. Qf3 {[%emt 0:02:36]} Rg6 {[%emt 0:03:20]} 27. Qh3 {[%emt 0:01:55]} Kg8 {[%emt 0:03:02]} 28. Kf2 {[%emt 0:02:16]} h6 {[%emt 0:05:14]} 29. Rh1 {[%emt 0:02:59]} Kf8 {[%emt 0:00:38]} 30. Nxh6 {[%emt 0:00:58]} Nxf6 {[%emt 0:00:42]} 31. Nxf5 {[%emt 0:00:23]} exf5 {[%emt 0:00:19]} 32. Qxf5 {[%emt 0:01:01]} Qc8 {[%emt 0:00:33]} 33. Rh8+ {[%emt 0:00:33]} Ng8 {[%emt 0:00:35]} 34. Qe5 {[%emt 0:02:37]} Qe6 {[%emt 0:00:29]} 35. Qc7 {[%emt 0:01:20]} Rc8 {[%emt 0:00:33]} 36. Qxa7 {[%emt 0:01:18]} Re8 {[%emt 0:00:34]} 37. Qxc5+ {[%emt 0:00:12]} Kg7 {[%emt 0:00:03]} 38. Qd4+ {[%emt 0:00:16]} Nf6 {[%emt 0:00:51]} 39. Rxe8 {[%emt 0:01:09]} Bxe8 {[%emt 0:00:18]} 40. Re1 {[%emt 0:00:18]} Qf7 {[%emt 0:00:20]} 41. Bxd5 {[%emt 0:00:45]} Qd7 {[%emt 0:00:48]} 42. Bxf6+ {[%emt 0:00:21]} Rxf6 {[%emt 0:00:05]} 43. Rg1+ {[%emt 0:00:08]} Bg6 {[%emt 0:00:17]} 44. Rxg6+ {[%emt 0:00:21]} 1-0

[Event "NED-ch U14 Youth 2019"]
[Site "Assen"]
[Date "2019.04.28"]
[Round "1.4"]
[White "Jakhari, Ansh"]
[Black "Brandsma, Romayn"]
[Result "0-1"]
[ECO "B07"]
[WhiteElo "1630"]
[BlackElo "1958"]
[Annotator "NA"]
[PlyCount "78"]
[EventDate "2019.04.27"]
[EventType "swiss"]
[EventCountry "NED"]
[SourceTitle "playchess.com"]
[Source "ChessBase"]
[SourceQuality "1"]
[TimeControl "5400+30"]

1. e4 {[%emt 0:00:00]} d6 {[%emt 0:00:00]} 2. d4 {[%emt 0:00:00]} Nf6 {[%emt 0:00:00]} 3. Nc3 {[%emt 0:00:00]} e5 {[%emt 0:00:00]} 4. dxe5 {[%emt 0:00:35]} dxe5 {[%emt 0:00:00]} 5. Qxd8+ {[%emt 0:00:13]} Kxd8 {[%emt 0:00:04]} 6. Bg5 {[%emt 0:01:45]} Be6 {[%emt 0:00:33]} 7. O-O-O+ {[%emt 0:00:09]} Nbd7 {[%emt 0:00:38]} 8. f4 {[%emt 0:01:39] B07: Pirc Defence: Miscellaneous Systems} (8. g3 Kc8 9. f4 h6 10. Bxf6 Nxf6 11. Nf3 exf4 12. gxf4 Bg4 13. Be2 Bc5 14. Kb1 Rd8 15. h3 Rxd1+ 16. Rxd1 Bxh3 17. Ne5 c6 18. Nxf7 Kc7 {1-0 (32) Tari,A (2593)-Plat,V (2567) Katowice 2017}) 8... h6 {[%emt 0:01:29]} 9. Bxf6+ {[%emt 0:00:18]} gxf6 {[%emt 0:00:04]} 10. f5 {[%emt 0:00:04]} Bxa2 $146 {[%emt 0:01:08]} ({Predecessor:} 10... Bc5 11. fxe6 fxe6 12. Bc4 Ke7 13. Nf3 Rhg8 14. g3 a6 15. a3 Bd6 {1-0 (44) Rodshtein,T (2263)-Gitu,P (1949) Mamaia 2016}) 11. Nxa2 {[%emt 0:00:53]} c6 {[%emt 0:01:50]} 12. Bc4 {[%emt 0:00:17]} Rh7 {[%emt 0:01:01]} 13. Nf3 {[%emt 0:00:51]} Kc7 {[%emt 0:01:45]} 14. h4 {[%emt 0:01:17]} b5 {[%emt 0:02:56]} 15. Bd3 {[%emt 0:01:19]} a5 {[%emt 0:06:34]} 16. g4 {[%emt 0:02:11]} Bc5 {[%emt 0:04:12]} 17. g5 {[%emt 0:03:02]} hxg5 {[%emt 0:01:36]} 18. hxg5 {[%emt 0:00:04]} Rxh1 {[%emt 0:00:09]} 19. Rxh1 {[%emt 0:00:02]} fxg5 {[%emt 0:00:23]} 20. Kd2 {[%emt 0:07:24]} g4 {[%emt 0:01:49]} 21. Ne1 {[%emt 0:00:08]} a4 {[%emt 0:07:18]} 22. Ng2 $14 {[%emt 0:01:44]} b4 {[%emt 0:04:10]} 23. Bc4 {[%emt 0:01:20]} Nf6 {[%emt 0:09:10]} 24. Re1 {[%emt 0:02:24]} Rd8+ {[%emt 0:04:29]} 25. Kc1 {[%emt 0:01:12]} Rh8 {[%emt 0:05:13]} 26. Bd3 {[%emt 0:12:03]} Rh2 {[%emt 0:02:01]} 27. Re2 {[%emt 0:00:47]} g3 {[%emt 0:02:37]} 28. Ne1 {[%emt 0:07:33]} Ng4 {[%emt 0:12:14]} 29. c3 {[%emt 0:13:40]} Bf2 {[%emt 0:06:31]} 30. Nf3 {[%emt 0:02:58]} Rh1+ {[%emt 0:00:32]} 31. Kd2 {[%emt 0:00:09]} g2 {[%emt 0:02:49]} 32. Nxb4 {[%emt 0:00:24]} Nh2 {[%emt 0:00:50]} 33. Ng1 {[%emt 0:01:14]} Rxg1 {[%emt 0:00:12]} 34. Rxf2 {[%emt 0:00:06]} Rd1+ {[%emt 0:00:19]} 35. Kxd1 {[%emt 0:00:03]} g1=Q+ {[%emt 0:00:06]} 36. Ke2 {[%emt 0:00:06]} Ng4 {[%emt 0:00:57]} 37. Rf1 {[%emt 0:00:34]} Qg2+ {[%emt 0:00:09]} 38. Ke1 {[%emt 0:00:25]} Qxb2 {[%emt 0:00:37]} 39. Na6+ {[%emt 0:00:44]} Kd8 {[%emt 0:01:04]} 0-1

[Event "NED-ch U14 Youth 2019"]
[Site "Assen"]
[Date "2019.04.28"]
[Round "1.5"]
[White "Bleeker, Kasper"]
[Black "Catalan, Ciro"]
[Result "1-0"]
[ECO "B35"]
[WhiteElo "1932"]
[BlackElo "1599"]
[Annotator "NA"]
[PlyCount "97"]
[EventDate "2019.04.27"]
[EventType "swiss"]
[EventCountry "NED"]
[SourceTitle "playchess.com"]
[Source "ChessBase"]
[SourceQuality "1"]
[TimeControl "5400+30"]

1. e4 {[%emt 0:00:00]} c5 {[%emt 0:00:00]} 2. Nf3 {[%emt 0:00:00]} g6 {[%emt 0:00:00]} 3. d4 {[%emt 0:00:00]} cxd4 {[%emt 0:00:00]} 4. Nxd4 {[%emt 0:00:38]} Nc6 {[%emt 0:00:00]} 5. Nc3 {[%emt 0:00:12]} Bg7 {[%emt 0:00:00]} 6. Be3 {[%emt 0:00:06]} Nf6 {[%emt 0:00:02]} 7. Bc4 {[%emt 0:00:31]} O-O {[%emt 0:00:06]} 8. f3 {[%emt 0:00:54]} Qb6 {[%emt 0:18:54]} 9. Bb3 {[%emt 0:12:52]} Qb4 {[%emt 0:44:08]} 10. O-O {[%emt 0:02:54]} d6 {[%emt 0:04:00]} 11. a3 {[%emt 0:04:12]} Qa5 {[%emt 0:00:07]} 12. Qd2 {[%emt 0:00:44]} Nd7 {[%emt 0:03:57]} 13. Rad1 {[%emt 0:04:54]} Nde5 {[%emt 0:12:25]} 14. Nd5 {[%emt 0:02:58]} Qd8 {[%emt 0:04:06]} 15. h3 {[%emt 0:06:29]} Na5 {[%emt 0:01:21]} 16. Nxe7+ {[%emt 0:10:39]} Kh8 {[%emt 0:01:13]} 17. Nd5 {[%emt 0:10:18]} Nec4 {[%emt 0:05:56]} 18. Qe2 {[%emt 0:03:15]} Nxe3 {[%emt 0:00:55]} 19. Qxe3 {[%emt 0:00:24]} Nxb3 {[%emt 0:00:40]} 20. Qxb3 {[%emt 0:01:56]} Qd7 {[%emt 0:01:30]} 21. c3 {[%emt 0:01:28]} b6 {[%emt 0:00:22]} 22. Nb5 {[%emt 0:01:01]} Ba6 {[%emt 0:00:35]} 23. Ndc7 {[%emt 0:00:40]} Bxb5 {[%emt 0:00:10]} 24. Nxb5 {[%emt 0:00:03]} Rfd8 {[%emt 0:00:46]} 25. Qd5 {[%emt 0:00:42]} Bf8 {[%emt 0:00:34]} 26. e5 {[%emt 0:01:58]} Qc8 {[%emt 0:00:37]} 27. Nxd6 {[%emt 0:00:49]} Bxd6 {[%emt 0:00:26]} 28. exd6 {[%emt 0:00:07]} Qc5+ {[%emt 0:00:04]} 29. Qxc5 {[%emt 0:00:35]} bxc5 {[%emt 0:00:01]} 30. Rfe1 {[%emt 0:00:12]} Rd7 {[%emt 0:01:11]} 31. Rd5 {[%emt 0:00:51]} Rc8 {[%emt 0:00:41]} 32. Re7 {[%emt 0:00:12]} Rcd8 {[%emt 0:00:19]} 33. Rxc5 {[%emt 0:00:24]} Kg8 {[%emt 0:00:44]} 34. Rc7 {[%emt 0:00:31]} Rxd6 {[%emt 0:00:14]} 35. Rxf7 {[%emt 0:00:08]} Rd2 {[%emt 0:00:41]} 36. Rg7+ {[%emt 0:00:07]} Kf8 {[%emt 0:00:13]} 37. Rxh7 {[%emt 0:00:03]} Kg8 {[%emt 0:00:32]} 38. Rcg7+ {[%emt 0:00:08]} Kf8 {[%emt 0:00:14]} 39. Rxa7 {[%emt 0:00:03]} Kg8 {[%emt 0:00:27]} 40. Rhg7+ {[%emt 0:00:09]} Kf8 {[%emt 0:00:14]} 41. Rxg6 {[%emt 0:00:05]} Rxb2 {[%emt 0:00:12]} 42. h4 {[%emt 0:00:27]} Rd1+ {[%emt 0:00:57]} 43. Kh2 {[%emt 0:00:03]} Rd3 {[%emt 0:00:10]} 44. Rc6 {[%emt 0:00:15]} Rd8 {[%emt 0:00:31]} 45. h5 {[%emt 0:00:17]} Kg8 {[%emt 0:00:15]} 46. h6 {[%emt 0:00:09]} Rf8 {[%emt 0:00:22]} 47. Rg6+ {[%emt 0:00:15]} Kh8 {[%emt 0:00:10]} 48. Rgg7 {[%emt 0:00:56]} Re8 {[%emt 0:00:46]} 49. Rh7+ {[%emt 0:00:03]} 1-0

[Event "NED-ch U14 Youth 2019"]
[Site "Assen"]
[Date "2019.04.28"]
[Round "1.6"]
[White "Arnold, Lorin"]
[Black "Van der Hagen, Loek"]
[Result "1/2-1/2"]
[ECO "B23"]
[WhiteElo "1598"]
[BlackElo "1931"]
[Annotator "NA"]
[PlyCount "45"]
[EventDate "2019.04.27"]
[EventType "swiss"]
[EventCountry "NED"]
[SourceTitle "playchess.com"]
[Source "ChessBase"]
[SourceQuality "1"]
[TimeControl "5400+30"]

1. e4 {[%emt 0:00:10]} c5 {[%emt 0:00:00]} 2. Nc3 {[%emt 0:00:05]} Nc6 {[%emt 0:00:00]} 3. f4 {[%emt 0:00:06]} g6 {[%emt 0:00:06]} 4. Nf3 {[%emt 0:00:05]} Bg7 {[%emt 0:00:09]} 5. Bc4 {[%emt 0:00:18]} e6 {[%emt 0:00:32]} 6. O-O {[%emt 0:00:10]} Nge7 {[%emt 0:00:28]} 7. Qe1 {[%emt 0:00:16]} O-O {[%emt 0:00:47]} 8. d3 {[%emt 0:01:19]} d5 {[%emt 0:02:04]} 9. Bb3 {[%emt 0:00:56]} a6 {[%emt 0:03:49]} 10. a4 {[%emt 0:00:22]} b6 {[%emt 0:02:38] B23: Closed Sicilian: Lines without g3} 11. Qh4 {[%emt 0:03:00]} Bb7 {[%emt 0:04:53]} 12. f5 {[%emt 0:00:22]} exf5 {[%emt 0:04:10]} 13. Bh6 $146 {[%emt 0:02:06]} ({Predecessor:} 13. Bg5 fxe4 14. dxe4 Qd7 15. Nxd5 Nxd5 16. Bxd5 Nd4 17. Be7 Bxd5 18. Bxf8 Rxf8 19. exd5 Nxf3+ 20. Rxf3 Bxb2 {0-1 (40) Heyne,L (1905)-Wagner,D (2199) playchess.com INT 2011}) 13... Nd4 {[%emt 0:10:41]} 14. Ng5 {[%emt 0:09:44]} f6 {[%emt 0:03:10]} 15. exd5 {[%emt 0:15:36]} Nxd5 {[%emt 0:06:50]} 16. Bxg7 {[%emt 0:08:24]} fxg5 {[%emt 0:11:28]} 17. Qh6 {[%emt 0:00:21]} Rf7 {[%emt 0:02:02]} 18. Bxd4 {[%emt 0:02:36]} cxd4 {[%emt 0:00:18]} 19. Ne2 {[%emt 0:00:16]} Qf6 {[%emt 0:25:39]} 20. Ng3 $15 {[%emt 0:01:33]} (20. h4 $5) 20... Ne3 {[%emt 0:04:23]} 21. Nh5 {[%emt 0:42:16]} Qh8 {[%emt 0:07:38]} 22. Qxg5 {[%emt 0:00:19]} Bd5 {[%emt 0:01:57]} 23. Bxd5 {[%emt 0:01:39]} 1/2-1/2

[Event "NED-ch U14 Youth 2019"]
[Site "Assen"]
[Date "2019.04.28"]
[Round "1.7"]
[White "Labruyere, Roger"]
[Black "Van Kuijk, Vadim"]
[Result "1-0"]
[ECO "B33"]
[WhiteElo "1922"]
[BlackElo "1589"]
[Annotator "NA"]
[PlyCount "55"]
[EventDate "2019.04.27"]
[EventType "swiss"]
[EventCountry "NED"]
[SourceTitle "playchess.com"]
[Source "ChessBase"]
[SourceQuality "1"]
[TimeControl "5400+30"]

1. e4 {[%emt 0:00:00]} c5 {[%emt 0:00:00]} 2. Nf3 {[%emt 0:00:00]} Nc6 {[%emt 0:00:00]} 3. d4 {[%emt 0:00:00]} cxd4 {[%emt 0:00:31]} 4. Nxd4 {[%emt 0:00:00]} Nf6 {[%emt 0:00:28]} 5. Nc3 {[%emt 0:00:00]} e5 {[%emt 0:00:24]} 6. Ndb5 {[%emt 0:00:17]} d6 {[%emt 0:00:35]} 7. Bg5 {[%emt 0:00:17]} a6 {[%emt 0:01:09]} 8. Na3 {[%emt 0:01:15]} b5 {[%emt 0:00:15]} 9. Nd5 {[%emt 0:03:40]} Be7 {[%emt 0:01:47]} 10. Bxf6 {[%emt 0:01:09]} Bxf6 {[%emt 0:01:00]} 11. c4 {[%emt 0:01:16]} Qa5+ {[%emt 0:41:59]} 12. Qd2 {[%emt 0:02:14]} Qxd2+ {[%emt 0:01:27]} 13. Kxd2 {[%emt 0:00:09]} Bg5+ {[%emt 0:00:46]} 14. Ke1 {[%emt 0:05:30]} O-O {[%emt 0:02:08]} 15. cxb5 {[%emt 0:02:38]} axb5 {[%emt 0:20:40]} 16. Nxb5 {[%emt 0:02:15]} Rb8 {[%emt 0:08:18]} 17. g3 {[%emt 0:01:48]} Ba6 {[%emt 0:06:48]} 18. Nxd6 {[%emt 0:03:31]} Bxf1 {[%emt 0:01:36]} 19. Kxf1 {[%emt 0:00:20]} Rxb2 {[%emt 0:01:45]} 20. Kg2 {[%emt 0:00:48]} f5 {[%emt 0:03:39]} 21. h4 {[%emt 0:02:33]} fxe4 {[%emt 0:04:24]} 22. hxg5 {[%emt 0:01:15]} Rfxf2+ {[%emt 0:00:11]} 23. Kh3 {[%emt 0:00:18]} Nd4 {[%emt 0:00:58]} 24. Rac1 {[%emt 0:04:08]} h6 {[%emt 0:00:36]} 25. g6 {[%emt 0:00:36]} Ne6 {[%emt 0:00:34]} 26. Rc8+ {[%emt 0:00:14]} Nf8 {[%emt 0:00:27]} 27. Ne7+ {[%emt 0:00:06]} Kh8 {[%emt 0:00:14]} 28. Nf7+ {[%emt 0:00:06]} 1-0

[Event "NED-ch U14 Youth 2019"]
[Site "Assen"]
[Date "2019.04.28"]
[Round "1.8"]
[White "Bakija, Alan"]
[Black "Kutchoukov, Daniel"]
[Result "1/2-1/2"]
[ECO "E01"]
[WhiteElo "1580"]
[BlackElo "1862"]
[Annotator "NA"]
[PlyCount "62"]
[EventDate "2019.04.27"]
[EventType "swiss"]
[EventCountry "NED"]
[SourceTitle "playchess.com"]
[Source "ChessBase"]
[SourceQuality "1"]
[TimeControl "5400+30"]

1. Nf3 {[%emt 0:00:00]} Nf6 {[%emt 0:00:00]} 2. g3 {[%emt 0:00:00]} e6 {[%emt 0:00:13]} 3. Bg2 {[%emt 0:00:05]} d5 {[%emt 0:00:37]} 4. O-O {[%emt 0:00:13]} Bd6 {[%emt 0:01:30]} 5. d4 {[%emt 0:00:23]} O-O {[%emt 0:00:05]} 6. c4 {[%emt 0:00:48]} c6 {[%emt 0:03:15]} 7. c5 {[%emt 0:02:21] E01: Catalan: Early deviations} (7. Qc2 Nbd7 8. Nbd2 Re8 9. Rd1 h6 10. e4 e5 11. exd5 cxd5 12. cxd5 e4 13. Nh4 Nb6 14. Nxe4 Bg4 15. f3 Nxe4 16. fxg4 Bxg3 17. hxg3 Nxg3 {½-½ (32) Galliamova,A (2443)-Gunina,V (2510) St Petersburg 2017}) 7... Bc7 {[%emt 0:00:06]} 8. Nc3 {[%emt 0:01:29]} Nbd7 {[%emt 0:00:14]} 9. Bf4 {[%emt 0:05:04]} b6 {[%emt 0:31:18]} 10. b4 {[%emt 0:01:23]} Bb7 $146 {[%emt 0:10:18]} ({Predecessor:} 10... Re8 11. Bxc7 Qxc7 12. Rc1 bxc5 13. dxc5 Rb8 14. Qa4 e5 15. e3 a5 {0-1 (76) Kuhlenbaeumer,W (1975)-Lemli,T (1958) Germany 2009}) 11. Ne5 {[%emt 0:24:46]} Nxe5 {[%emt 0:38:19]} 12. Bxe5 {[%emt 0:00:22]} Bxe5 {[%emt 0:01:00]} 13. dxe5 {[%emt 0:00:07]} Nd7 {[%emt 0:00:36]} 14. Qd4 {[%emt 0:01:03]} f6 {[%emt 0:05:17]} 15. exf6 {[%emt 0:00:53]} Qxf6 {[%emt 0:02:53]} 16. Qxf6 {[%emt 0:01:12]} Rxf6 {[%emt 0:00:24]} 17. Na4 {[%emt 0:01:37]} e5 {[%emt 0:01:41]} 18. e3 {[%emt 0:00:45]} Raf8 {[%emt 0:00:26]} 19. f3 {[%emt 0:00:42]} Ba6 {[%emt 0:00:32]} 20. Rfe1 {[%emt 0:01:57]} Bb5 {[%emt 0:00:40]} 21. Nc3 {[%emt 0:00:13]} bxc5 $11 {[%emt 0:00:26]} 22. Nxb5 {[%emt 0:01:36]} cxb5 {[%emt 0:00:02]} 23. bxc5 {[%emt 0:00:34]} Nxc5 {[%emt 0:00:03]} 24. Red1 {[%emt 0:00:37]} Rd6 {[%emt 0:00:42]} 25. Rac1 {[%emt 0:00:57]} Na6 {[%emt 0:01:21]} 26. f4 {[%emt 0:01:26]} exf4 {[%emt 0:00:26]} 27. Bxd5+ {[%emt 0:01:07]} Kh8 {[%emt 0:00:16]} 28. gxf4 {[%emt 0:00:24]} Nb4 {[%emt 0:00:43]} 29. Bb3 {[%emt 0:01:03]} Rg6+ {[%emt 0:00:35]} 30. Kf2 {[%emt 0:00:55]} Rh6 {[%emt 0:00:29]} 31. Kg1 {[%emt 0:01:58]} Rg6+ {[%emt 0:00:14]} 1/2-1/2

[Event "NED-ch U14 Youth 2019"]
[Site "Assen"]
[Date "2019.04.28"]
[Round "1.9"]
[White "Boghossian, Wahe"]
[Black "De Heij, Mees"]
[Result "1-0"]
[ECO "B59"]
[WhiteElo "1820"]
[BlackElo "1524"]
[Annotator "NA"]
[PlyCount "69"]
[EventDate "2019.04.27"]
[EventType "swiss"]
[EventCountry "NED"]
[SourceTitle "playchess.com"]
[Source "ChessBase"]
[SourceQuality "1"]
[TimeControl "5400+30"]

1. e4 {[%emt 0:00:00]} c5 {[%emt 0:00:00]} 2. Nf3 {[%emt 0:00:00]} Nc6 {[%emt 0:00:00]} 3. d4 {[%emt 0:00:05]} cxd4 {[%emt 0:00:06]} 4. Nxd4 {[%emt 0:00:07]} Nf6 {[%emt 0:00:11]} 5. Nc3 {[%emt 0:00:22]} e5 {[%emt 0:00:09]} 6. Nb3 {[%emt 0:00:54]} d6 {[%emt 0:00:55]} 7. Be2 {[%emt 0:01:00]} Be7 {[%emt 0:00:42]} 8. O-O {[%emt 0:00:54]} O-O {[%emt 0:01:10]} 9. Be3 {[%emt 0:01:44]} Be6 {[%emt 0:03:50]} 10. f4 {[%emt 0:29:33]} exf4 {[%emt 0:04:59]} 11. Bxf4 $11 {[%emt 0:00:27]} h6 {[%emt 0:01:46]} 12. Kh1 {[%emt 0:06:00]} Ne5 {[%emt 0:12:05]} 13. Nd4 {[%emt 0:03:14]} Ng6 {[%emt 0:07:27]} 14. Nxe6 {[%emt 0:08:21]} fxe6 {[%emt 0:00:22]} 15. Bg3 {[%emt 0:00:36]} e5 {[%emt 0:03:50]} 16. Bc4+ {[%emt 0:03:04]} Kh7 {[%emt 0:00:27]} 17. Qe2 {[%emt 0:01:36]} Qb6 {[%emt 0:04:06]} 18. Rab1 {[%emt 0:01:21]} Rac8 {[%emt 0:07:35]} 19. Be6 {[%emt 0:02:28]} Rcd8 {[%emt 0:01:18]} 20. Bf5 {[%emt 0:01:22]} Qa6 {[%emt 0:08:18]} 21. Qd1 {[%emt 0:03:51]} Qb6 {[%emt 0:04:37]} 22. h4 {[%emt 0:12:40]} Qe3 {[%emt 0:10:44]} 23. Bf2 {[%emt 0:03:48]} Nxe4 {[%emt 0:10:37]} 24. Bxg6+ {[%emt 0:01:35]} Kxg6 {[%emt 0:00:40]} 25. Qg4+ {[%emt 0:01:27]} Qg5 {[%emt 0:06:56]} 26. hxg5 {[%emt 0:00:21]} Nxf2+ {[%emt 0:00:33]} 27. Rxf2 {[%emt 0:00:05]} Rxf2 {[%emt 0:00:56]} 28. Qe6+ {[%emt 0:00:07]} Bf6 {[%emt 0:01:47]} 29. gxf6 {[%emt 0:03:14]} Rxf6 {[%emt 0:00:13]} 30. Qg4+ {[%emt 0:00:08]} Kh7 {[%emt 0:00:24]} 31. Rd1 {[%emt 0:00:31]} Rdf8 {[%emt 0:00:46]} 32. Nd5 {[%emt 0:00:48]} Rg6 {[%emt 0:00:32]} 33. Qe4 {[%emt 0:00:07]} Rf7 {[%emt 0:00:39]} 34. Rd3 {[%emt 0:00:21]} b6 {[%emt 0:01:15]} 35. Rg3 {[%emt 0:00:05]} 1-0

[Event "NED-ch U14 Youth 2019"]
[Site "Assen"]
[Date "2019.04.28"]
[Round "1.10"]
[White "Dekker, Thiemen"]
[Black "Van Arendonk, Polle"]
[Result "1/2-1/2"]
[ECO "C01"]
[WhiteElo "1521"]
[BlackElo "1803"]
[Annotator "NA"]
[PlyCount "92"]
[EventDate "2019.04.27"]
[EventType "swiss"]
[EventCountry "NED"]
[SourceTitle "playchess.com"]
[Source "ChessBase"]
[SourceQuality "1"]
[TimeControl "5400+30"]

1. e4 {[%emt 0:00:00]} e6 {[%emt 0:00:00]} 2. d4 {[%emt 0:00:00]} d5 {[%emt 0:00:00]} 3. exd5 {[%emt 0:00:00]} exd5 {[%emt 0:00:00]} 4. c4 {[%emt 0:00:00]} c6 {[%emt 0:00:34]} 5. Nc3 {[%emt 0:00:44]} Nf6 {[%emt 0:00:24]} 6. Bd3 {[%emt 0:01:01]} Be7 {[%emt 0:00:36]} 7. Nf3 {[%emt 0:01:07]} O-O {[%emt 0:01:07]} 8. O-O {[%emt 0:00:33]} dxc4 {[%emt 0:00:39]} 9. Bxc4 {[%emt 0:00:45]} Bg4 {[%emt 0:01:40]} 10. Be3 {[%emt 0:01:23]} Nbd7 {[%emt 0:01:17]} 11. h3 {[%emt 0:01:14]} Bh5 {[%emt 0:00:07]} 12. g4 {[%emt 0:05:43]} Bg6 {[%emt 0:00:14]} 13. d5 {[%emt 0:00:22]} cxd5 {[%emt 0:03:41]} 14. Nxd5 {[%emt 0:00:44]} Be4 {[%emt 0:09:40]} 15. Nxe7+ {[%emt 0:01:01]} Qxe7 {[%emt 0:00:14]} 16. g5 {[%emt 0:10:16]} Ne8 {[%emt 0:04:34]} 17. Bd5 {[%emt 0:03:43]} Nd6 {[%emt 0:05:15]} 18. Bxe4 {[%emt 0:17:06]} Nxe4 {[%emt 0:00:22]} 19. Qd5 {[%emt 0:02:03]} b6 {[%emt 0:06:46]} 20. Rfe1 {[%emt 0:08:07]} Rfe8 {[%emt 0:03:31]} 21. Rac1 {[%emt 0:06:04]} Nf8 {[%emt 0:01:43]} 22. Rc4 {[%emt 0:08:04]} Rad8 {[%emt 0:03:56]} 23. Qc6 {[%emt 0:02:45]} Rd6 {[%emt 0:03:25]} 24. Qc7 {[%emt 0:07:02]} Qxc7 {[%emt 0:01:16]} 25. Rxc7 {[%emt 0:00:42]} Rd7 {[%emt 0:00:33]} 26. Rxd7 {[%emt 0:01:08]} Nxd7 {[%emt 0:00:10]} 27. Bf4 {[%emt 0:05:57]} f6 {[%emt 0:01:34]} 28. gxf6 {[%emt 0:04:19]} Ndxf6 {[%emt 0:00:57]} 29. Ng5 {[%emt 0:01:27]} Nxg5 {[%emt 0:01:42]} 30. Rxe8+ {[%emt 0:00:13]} Nxe8 {[%emt 0:00:04]} 31. Bxg5 {[%emt 0:00:19]} Kf7 {[%emt 0:00:18]} 32. Kg2 {[%emt 0:00:46]} Nd6 {[%emt 0:00:59]} 33. Kf3 {[%emt 0:01:24]} Ke6 {[%emt 0:01:24]} 34. Be3 {[%emt 0:02:21]} Kf5 {[%emt 0:00:58]} 35. a4 {[%emt 0:01:56]} Nc4 {[%emt 0:02:22]} 36. Bd4 {[%emt 0:00:55]} g5 {[%emt 0:01:23]} 37. b4 {[%emt 0:01:17]} h5 {[%emt 0:01:55]} 38. Kg3 {[%emt 0:01:19]} a6 {[%emt 0:01:35]} 39. b5 {[%emt 0:01:25]} axb5 {[%emt 0:00:20]} 40. axb5 {[%emt 0:00:24]} Ke4 {[%emt 0:03:34]} 41. Bf6 {[%emt 0:00:46]} Kf5 {[%emt 0:00:11]} 42. Bd8 {[%emt 0:00:21]} Nd6 {[%emt 0:00:47]} 43. Bxb6 {[%emt 0:00:12]} Nxb5 {[%emt 0:00:06]} 44. h4 {[%emt 0:01:06]} g4 {[%emt 0:00:24]} 45. f3 {[%emt 0:00:23]} gxf3 {[%emt 0:01:18]} 46. Kxf3 {[%emt 0:00:07]} Nd6 {[%emt 0:01:01]} 1/2-1/2